Cogmind - Beta 14 @@@ ROGUE MODE // 2024.08.23 @ 01:01:11 Player: Zaros426 Result: Destroyed by 8R-AWN with 8R-AWN's Boregun Performance ------------- Evolutions (0) 0 Regions Visited (3) 600 Robots Destroyed (29) 145 Value Destroyed (405) 405 Prototype IDs (27) 540 Alien Tech Used (0) 0 Bonus (137) 137 TOTAL SCORE: 1827 Bonus ------- Aligned with FarCom 300 Friendly Fire -163 Cogmind --------- Core Integrity 0/250 Matter 195/300 Energy 20/265 System Corruption 0% Temperature Cool (0) Movement Core (900) Ox17 Location -10/Exiles Parts ------- > --- POWER (1) -------- Improved Ion Engine > --- PROPULSION (2) --- (None) > --- UTILITY (2) ------ High-capacity Storage Unit Seismic Detector > --- WEAPON (2) ------- Beam Cannon Beam Cannon > --- INVENTORY (20) --- Improved Ion Engine Improved Ion Engine Light Fission Core Light Treads Light Treads Light Treads High-capacity Storage Unit Signal Interpreter Signal Interpreter Longsword +1 Peak State ------------ > --- POWER ------------ Improved Ion Engine > --- PROPULSION ------- Wheel Wheel > --- UTILITY ---------- High-capacity Storage Unit Light Armor Plating > --- WEAPON ----------- Grenade Launcher Longsword +1 > --- INVENTORY -------- Improved Ion Engine Improved Ion Engine Improved Ion Engine Nuclear Core Nuclear Core Light Fission Core Light Treads Light Treads Light Treads Light Treads Light Treads Improved Heat Sink High-capacity Storage Unit Signal Interpreter Signal Interpreter Seismic Detector Beam Cannon Beam Cannon Beam Cannon [Rating: 18] Favorites ----------- Power Ion Engine Engine Ion Engine Propulsion Wheel Treads Light Treads Leg Aluminum Leg Wheel Wheel Utility Light Armor Plating Device Improved Heat Sink Storage High-capacity Storage Unit Protection Light Armor Plating Weapon Beam Cannon Energy Gun Medium Laser Energy Cannon Beam Cannon Ballistic Gun Assault Rifle Launcher Grenade Launcher Special Weapon Mining Laser Slashing Weapon Longsword +1 Build | -11 -10 -10 -10 ------- Run | Yrd Mat Min Exi Slots Evolved . | . . . . Power . | . . . . Propulsion . | . . . . Utility . | . . . . Weapon . | . . . . Parts Attached 46 | 8 28 . 10 Power 5 | 1 3 . 1 Engine 5 | 1 3 . 1 Core . | . . . . Reactor . | . . . . Propulsion 19 | 4 13 . 2 Treads 9 | 2 5 . 2 Leg 2 | 2 . . . Wheel 8 | . 8 . . Hover . | . . . . Flight . | . . . . Utility 8 | 1 5 . 2 Device 5 | 1 2 . 2 Storage 2 | . 2 . . Processor . | . . . . Hackware . | . . . . Protection 1 | . 1 . . Artifact . | . . . . Weapon 14 | 2 7 . 5 Energy Gun 1 | 1 . . . Energy Cannon 5 | . 2 . 3 Ballistic Gun 4 | 1 3 . . Ballistic Cannon . | . . . . Launcher 1 | . . . 1 Special Weapon 2 | . 2 . . Impact Weapon . | . . . . Slashing Weapon 1 | . . . 1 Piercing Weapon . | . . . . Special Melee Weapon . | . . . . Unidentified Prototypes . | . . . . Parts Lost 10 | . 1 . 9 Power 1 | . . . 1 Propulsion 4 | . . . 4 Utility 2 | . . . 2 Weapon 3 | . 1 . 2 Highest Loss Streak 9 | . 1 . 9 To Critical Strikes 3 | . 1 . 2 Average Slot Usage (%) 97 | . 98 100 96 Engine 13 | . 14 14 13 Treads 10 | . 14 . 2 Leg 2 | . 3 . . Wheel 14 | . 9 28 24 Device 6 | . 8 . . Storage 12 | . 12 14 14 Protection 7 | . 5 14 12 Energy Gun 2 | . 3 . . Energy Cannon 12 | . 9 28 16 Ballistic Gun 9 | . 13 . . Launcher 1 | . . . 5 Slashing Weapon 1 | . . . 5 Peak Build Rating 18 | 6 10 10 18 Average Rating 9 | 4 8 10 12 On Entrance 6 | . 6 10 10 Naked Turns . | . . . . Heaviest Build 56 | 10 56 56 56 Greatest Support 40 | 40 40 20 40 Greatest Overweight (x) 5 | . 5 2 5 Average Overweight (x) 1 | . . 2 2 Largest Inventory Capacity 20 | 5 20 20 20 Average Capacity 13 | 5 11 20 20 Most Carried 20 | 4 20 20 20 Average Carried 12 | 2 10 20 18 Final Capacity 20 | 5 20 20 20 Final Carried 20 | 4 20 20 10 Class Distribution -------------------- 100% | Mutant Dominant Class ---------------- Mutant | -10/Materials Mutant | -10/Mines Mutant | -10/Exiles Resources | -11 -10 -10 -10 ----------- Run | Yrd Mat Min Exi Matter Collected 780 | 252 528 . . Remotely . | . . . . Salvage Created 894 | 15 875 . 4 Parts 75 | 5 70 . . Haulers Intercepted 2 | . 2 . . Recyclers Shooed 1 | 1 . . . Parts Field Recycled . | . . . . Retrieved Matter . | . . . . Parts Self-Destructed . | . . . . Prevented . | . . . . Kills | -11 -10 -10 -10 ------- Run | Yrd Mat Min Exi Combat Hostiles Destroyed 19 | . 12 . 7 Guns 11 | . 11 . . Cannons 2 | . 1 . 1 AOE 6 | . . . 6 Classes Destroyed 9 | 1 7 . 1 Worker 2 | . 2 . . Builder 3 | . 3 . . Tunneler 4 | 1 3 . . Hauler 2 | . 2 . . Recycler 3 | . 3 . . Watcher 3 | . 3 . . Swarmer 6 | . 6 . . Grunt 6 | . 6 . . Assembled 7 | . . . 7 Best Kill Streak 6 | 1 4 . 6 Combat Bots Only 6 | . 3 . 6 Max Kills in Single Turn 3 | 1 1 . 3 Gunslinging . | . . . . Exploded 3 | . . . 3 Melee . | . . . . Uniques/NPCs Destroyed . | . . . . Combat | -11 -10 -10 -10 -------- Run | Yrd Mat Min Exi Hostile Shots Fired 136 | . 52 4 80 Missed 33 | . 14 . 19 Damage Taken 1427 | . 390 61 976 Core 253 | . 65 16 172 Absorbed by Shields . | . . . . Core Remaining (%) 100 | 100 . . . Volleys Fired 89 | 6 68 1 14 Largest 2 | 2 2 2 2 Hottest 120 | 70 120 120 120 Shots Fired 164 | 12 127 2 23 Gun 107 | 12 95 . . Cannon 44 | . 24 2 18 Launcher 5 | . . . 5 Special 8 | . 8 . . Kinetic 75 | 6 69 . . Thermal 84 | 6 58 2 18 Explosive 5 | . . . 5 Electromagnetic . | . . . . Robot Hit Streak 11 | 10 11 . 8 Robot Miss Streak 5 | 1 5 . 2 Penetration Max . | . . . . Secondary Targets 3 | . 3 . . Max Gunslinging Chain 1 | . 1 . . Shots Hit Robots 98 | 10 69 . 19 Core Hits 58 | 2 38 . 18 Critical Kills . | . . . . Critical Parts Destroyed . | . . . . Critical Strikes 1 | . 1 . . Burn 1 | . 1 . . Melee Attacks 5 | . . . 5 Impact . | . . . . Slashing 5 | . . . 5 Piercing . | . . . . Sneak Attacks . | . . . . Combat Hostiles . | . . . . Follow-up Attacks . | . . . . Damage Inflicted 2037 | 128 925 . 984 Guns 843 | 128 715 . . Cannons 460 | . 210 . 250 Explosions 502 | . . . 502 Melee 232 | . . . 232 Ramming . | . . . . Kinetic 538 | 52 486 . . Thermal 765 | 76 439 . 250 Explosive 502 | . . . 502 Electromagnetic . | . . . . Impact . | . . . . Slashing 232 | . . . 232 Piercing . | . . . . Highest Corruption . | . . . . Average Corruption . | . . . . Corruption Purged . | . . . . Corruption Blocked . | . . . . Overload Shots . | . . . . Overflow Damage 14 | . . . 14 Projectiles . | . . . . Explosions 14 | . . . 14 Melee . | . . . . Knockbacks . | . . . . Impact . | . . . . Kinetic . | . . . . Secondary . | . . . . Self-Inflicted Damage . | . . . . Shots . | . . . . Rammed . | . . . . Targets Rammed . | . . . . Kicked . | . . . . Crushed . | . . . . Highest Temperature 207 | 36 207 72 57 Average Temperature 42 | 16 46 36 40 Received Heat Transfer 120 | . 102 18 . Siege Activations . | . . . . Robots Corrupted . | . . . . Combat Hostiles . | . . . . Parts Fried . | . . . . Impact Corruptions . | . . . . Robots Melted . | . . . . Combat Hostiles . | . . . . Parts Melted 4 | . 4 . . Heat Transferred 1560 | 222 1184 . 154 Parts Sabotaged . | . . . . Parts Stolen . | . . . . Parts Stripped . | . . . . Power Chain Reactions . | . . . . Alert | -11 -10 -10 -10 ------- Run | Yrd Mat Min Exi Peak Influence 319 | 5 319 65 . Initial 4 | . 3 4 . Average 87 | 2 99 28 . Maximum Alert Level 1 | . 1 . . Low Security (%) 93 | 100 92 100 . Level 1 6 | . 7 . . Level 2 . | . . . . Level 3 . | . . . . Level 4 . | . . . . Level 5 . | . . . . High Security . | . . . . Max Security . | . . . . Squads Dispatched 3 | . 3 . . Investigation 2 | . 2 . . Extermination . | . . . . Reinforcement 1 | . 1 . . Assault . | . . . . Garrison . | . . . . Intercept . | . . . . Searches Triggered . | . . . . Construction Impeded . | . . . . Haulers Reinforced . | . . . . Active Scanning Responses . | . . . . Cargo Convoy Interrupts . | . . . . Stealth | -11 -10 -10 -10 --------- Run | Yrd Mat Min Exi Distress Signals 1 | . 1 . . Communications Jammed . | . . . . Distress Signals . | . . . . Times Spotted 32 | . 22 2 8 Peak Tracking Total 9 | . 4 2 9 Tactical Retreats 3 | . 2 1 . Traps | -11 -10 -10 -10 ------- Run | Yrd Mat Min Exi Traps Triggered . | . . . . Indirectly . | . . . . Trap Hack Attempts . | . . . . Triggered . | . . . . Disarmed . | . . . . Reprogrammed . | . . . . Reused . | . . . . Traps Extracted . | . . . . Installed . | . . . . Triggered . | . . . . Machines | -11 -10 -10 -10 ---------- Run | Yrd Mat Min Exi Machines Disabled 3 | . . . 3 Max in Single Turn 2 | . . . 2 Machines Repaired . | . . . . Machines Dismantled . | . . . . Machines Sabotaged . | . . . . Overloaded Fab Kills . | . . . . Hacking | -11 -10 -10 -10 --------- Run | Yrd Mat Min Exi Machines Accessed 8 | . 7 . 1 Terminals 7 | . 7 . . Fabricators . | . . . . Repair Stations . | . . . . Recycling Units . | . . . . Scanalyzers . | . . . . Garrison Access . | . . . . Total Hacks 31 | . 30 . 1 Successful 14 | . 13 . 1 Failed 17 | . 17 . . Catastrophic 6 | . 6 . . Database Lockouts . | . . . . Manual 18 | . 17 . 1 Terminals 30 | . 30 . . Fabricators . | . . . . Repair Stations . | . . . . Recycling Units . | . . . . Scanalyzers . | . . . . Garrison Access . | . . . . Terminal Hacks 12 | . 11 . 1 Robot Schematic 1 | . 1 . . Robot Analysis 3 | . 3 . . Prototype ID Bank 2 | . 2 . . Branch Access Points 1 | . 1 . . Terminal Index 1 | . 1 . . Locate Traps 2 | . 2 . . Zone Layout 1 | . 1 . . Derelict Proto ID Bank 1 | . . . 1 Fabricator Hacks . | . . . . Repair Station Hacks . | . . . . Recycling Unit Hacks . | . . . . Scanalyzer . | . . . . Garrison Access Hacks . | . . . . Unauthorized Hacks 2 | . 2 . . Terminals 2 | . 2 . . Botnet 2 | . 2 . . Fabricators . | . . . . Repair Stations . | . . . . Recycling Units . | . . . . Scanalyzers . | . . . . Garrison Access . | . . . . Data Cores Recovered . | . . . . Used . | . . . . Hacking Detections 7 | . 7 . . Full Trace Events 3 | . 3 . . Feedback Events . | . . . . Feedback Blocked . | . . . . Robot Schematics Acquired 1 | . 1 . . Robots Built . | . . . . Authchips . | . . . . Time . | . . . . Total Robot Build Rating . | . . . . Part Schematics Acquired . | . . . . Parts Built . | . . . . Authchips . | . . . . Time . | . . . . Total Part Build Rating . | . . . . Parts Repaired . | . . . . Time . | . . . . Parts Recycled . | . . . . Recycled Matter . | . . . . Retrieved Matter . | . . . . Retrieved Components . | . . . . Parts Scanalyzed . | . . . . Part Schematics Acquired . | . . . . Parts Damaged . | . . . . Bothacking | -11 -10 -10 -10 ------------ Run | Yrd Mat Min Exi Used RIF Installer . | . . . . Robots Hacked . | . . . . Non-combat . | . . . . Combat . | . . . . Robot Hacks Applied . | . . . . Relay Couplers Released . | . . . . Fabnet Peak Effective % . | . . . . Robots Rewired . | . . . . Allies Hacked . | . . . . Hacks Repelled . | . . . . Allies | -11 -10 -10 -10 -------- Run | Yrd Mat Min Exi Total Allies . | . . . . Largest Group . | . . . . Highest-Rated Group . | . . . . Highest-Rated Ally . | . . . . Total Orders . | . . . . Ally Attacks . | . . . . Total Damage . | . . . . Kills . | . . . . Allies Corrupted . | . . . . Allies Melted . | . . . . Intel | -11 -10 -10 -10 ------- Run | Yrd Mat Min Exi Robot Analysis Total 3 | . 3 . . Derelict Logs Recovered 1 | . . 1 . Drone Launches . | . . . . Drone Recoveries . | . . . . Exploration | -11 -10 -10 -10 ------------- Run | Yrd Mat Min Exi Turns Passed 2043 | 89 1418 146 390 Spaces Moved 1322 | 50 852 131 289 Core 12 | 12 . . . Treads 305 | 8 296 . 1 Legs 157 | 30 127 . . Wheels 848 | . 429 131 288 Hover . | . . . . Flight . | . . . . Fastest Speed 50 | 50 100 110 110 Average Speed 122 | 109 129 110 110 Slowest Speed 240 | 160 240 110 240 Overloaded Moves . | . . . . Propulsion Burnouts . | . . . . Robots Hopped . | . . . . Cave-ins Triggered . | . . . . Exploration Rate (%) 43 | 4 93 35 42 Regions Visited 3 Branch Regions 2 Pre-discovered Areas . | . . . . Known Exits Taken 1 | . 1 . . Unknown Exits Taken 2 | 1 . 1 . Scrap Searched . | . . . . Spaces Dug 6 | . 6 . . Terrain Destroyed 27 | . 7 . 20 Melee . | . . . . Projectile 7 | . 7 . . AOE 20 | . . . 20 Terrain Rammed . | . . . . Walls Destroyed . | . . . . Machines Disabled . | . . . . Actions | -11 -10 -10 -10 --------- Run | Yrd Mat Min Exi Total 1551 | 69 1019 131 332 Wait 37 | . 34 . 3 Move 1319 | 49 851 130 289 Hop . | . . . . Pick Up 34 | 6 24 . 4 Fast Attach 9 | 4 5 . . Attach 11 | 2 2 . 7 Detach . | . . . . Swap 26 | 2 21 . 3 Drop 21 | . 14 . 7 Fire 89 | 6 68 1 14 Melee 5 | . . . 5 Ram . | . . . . Kick . | . . . . Crush . | . . . . Escape Stasis . | . . . . Rewire . | . . . . Trap . | . . . . Miscellaneous . | . . . . Route ------- -11/Scrapyard -10/Materials (discovered 4 exits: [*Mat x3] / *Min) -10/Mines -10/Exiles History --------- Turn | Location | Event 17 | -11/Scrapyard | Discovered new exit (range 16) 90 | -11/Scrapyard | Entered Materials 322 | -10/Materials | Build established: Mutant 359 | -10/Materials | Discovered new exit (range 5) 456 | -10/Materials | Discovered new exit (range 10) 507 | -10/Materials | Identified exit to Mines 622 | -10/Materials | Discovered new exit (range 14) 849 | -10/Materials | Discovered new exit (range 9) 1508 | -10/Materials | Entered Mines 1534 | -10/Mines | Learned 8 Materials zone layouts 1623 | -10/Mines | Deemed a non-threat by the Exiles lab entrance 1624 | -10/Mines | Discovered new exit (range 5) 1654 | -10/Mines | Entered Exiles 1682 | -10/Exiles | Met 8R-AWN 1701 | -10/Exiles | Met EX-HEX 1731 | -10/Exiles | Met EX-BIN 1747 | -10/Exiles | Aligned with FarCom system 1748 | -10/Exiles | Given EX-Vault access code 1773 | -10/Exiles | Opened EX-Vault 1784 | -10/Exiles | Found Longsword +1 1806 | -10/Exiles | Warned to stay clear of 0b10 Research branches 1973 | -10/Exiles | Attacked by the Exiles 1998 | -10/Exiles | Core integrity fell below 50% 2037 | -10/Exiles | Core integrity fell below 20% 2044 | -10/Exiles | Destroyed by 8R-AWN with 8R-AWN's Boregun Last Messages --------------- 02005_ Penetrated by HV Slug. 02011_ HV Slug penetrates Wall. 02013_ Penetrated by HV Slug. 02013_ HV Slug penetrates Wall. 02016_ Penetrated by HV Slug. 02016_ Imp. Ion Engine destroyed. 02017_ as-65449 destroyed. 02018_ Penetrated by HV Slug. 02029_ HV Slug penetrates Wall. 02031_ Penetrated by HV Slug. 02034_ Critical hit (Destroy). 02034_ Lgt. Treads destroyed. 02034_ Penetrated by HV Slug. 02036_ Lgt. Treads destroyed. 02038_ Penetrated by HV Slug. 02038_ Imp. Heat Sink destroyed. 02038_ Penetrated by HV Slug. 02038_ Critical hit (Destroy). 02038_ Beam Cannon destroyed. 02040_ Penetrated by HV Slug. Map ----- +----------------------------------------------------+ | """#????????????????????????????????????? | | """#????????????????????????????????????? | | """#????????????????????????????????????? | | """"????????????????????????????????????? | | """#????????????????????????????????????? | | "X" """"????????????????????????????????????? | | """ #????????????????????????????????????? | | """""""""#????????????????????????????????????? | | ###########????????????????????????????????????? | | #??????????????????????????????????????????????? | | #??????????????????????????????????????????????? | | ##?????????????????????????????????????????????? | | ##???###########??????????????????????????????? | | #####"""" """"##?????????????????????????????? | | " """ """"##????????????????????????????? | | " " #????????????????????????????? | | " "#????????????????????????????? | | a"#???????????#####????????????? | | "##?????????##" #????????????? | | "###???????#" #????????????? | | ""#??????##" ##???????????? | | "" "#????### ###????????## | | ###""" ###??# ########## | | ??##""" ;#### #""""## | | ???#"""" ;## | | ???#"" @ * ## | | ??#"""" #### | | ??" g ""#?#"""""#### | | " #"""##?#######??#### | | ######??????????????#### | | ##??????????????????????? | | " #???????????????????????? | | "" "" * #???????????????????????? | | ##""" " " "" ##???????????????????????? | | ??####""" """# ##????????????????????????? | | ?????###""""# # ????????????????????????? | | ???????####??######## ##????????????????????????? | | ????????????????????###??????????????????????????? | | ?????????????????????????????????????????????????? | | ?????????????????????????????????????????????????? | | ?????????????????????????????????????????????????? | | ?????????????????????????????????????????????????? | | ?????????????????????????????????????????????????? | | ?????????????????????????????????????????????????? | | ?????????????????????????????????????????????????? | | ?????????????????????????????????????????????????? | | ?????????????????????????????????????????????????? | | ?????????????????????????????????????????????????? | | ?????????????????????????????????????????????????? | | ?????????????????????????????????????????????????? | +----------------------------------------------------+ Best States ------------- Heat Dissipation 39 Energy Generation 12 Energy Capacity 265 Matter Stores 300 Matter Capacity 300 Sight Range 16 Terrain Scan Density 10 Armor Coverage 150 Evasion (%) 55 Recoil Reduction 2 Item Schematics ----------------- None Robot Schematics ------------------ G-34 Mercenary | -10/Materials | Hacked Fabricated ------------ Nothing Alien Tech Used ----------------- None Achievements -------------- None Challenges ------------ None Game ------ Seed CombatDimensionalWeb Manual? 0 Play Time 00:18:29 Cumulative 26.6 hours Start 2024.08.23 @ 00:43:02 End 2024.08.23 @ 01:01:11 Sessions 1 Manual Loads 0 Difficulty Rogue Special Mode None Game No. 13 Rogue 13 Adventurer 0 Explorer 0 Win Type - Total 0 Types 0/0/0/0/0/0/0/0/0 Lore% 28 Gallery% 39 Achievement% 37 Wizard Run 0 Options --------- Layout 0 ASCII 0 Keyboard 0 Movement Mouse Keybinds 0 Fullscreen 1 Font 24/Smallcaps Map View 183x50 Zoom Use 0% Tactical HUD 1 Map Filters NONE Filters NONE Steam 0 RUN: 469ac6a0-04ce-4ce2-b8b0-c193bb94b35c